fUSD/lending_fUSD_20260105
["ID","MTS","AMOUNT","RATE_DAILY","PERIOD"]
[400473427,1767623080155,635.39,0.00013699,2]
[400473428,1767623111377,600.0,0.00032,120]
[400473434,1767623158115,-166.66,0.00016305,2]
[400473435,1767623158136,-150.0,0.00016404,2]
[400473436,1767623158158,-225.515,0.00016451,2]
[400473437,1767623158179,-158.76234223,0.00016469,5]
[400473438,1767623158200,-2672.75,0.00016481,2]
[400473439,1767623158222,-166.66,0.00016635,2]
[400473440,1767623158247,-186.3914,0.00016686,2]
[400473441,1767623158269,-438.94666038,0.00016772,2]
[400473442,1767623158290,-300.0,0.00016784,2]
[400473443,1767623158313,-1190.37289332,0.00016784,2]
[400473447,1767623179876,15040.22710691,0.000295,120]
[400473448,1767623233401,447.786651,0.0001305,2]
[400473449,1767623241092,-5515.17087603,0.000162,5]
[400473459,1767623315667,15911.89986684,0.00016,4]
[400473462,1767623408402,175.0,0.0003152,120]
[400473469,1767623432263,-1160.1,0.000162,5]
[400473471,1767623432320,-1077.756217,0.000162,5]
[400473472,1767623432380,-1592.84729297,0.000162,5]
[400473473,1767623432390,-342.31095789,0.00016244,2]
[400473474,1767623432399,-227.20239547,0.00016684,2]
[400473475,1767623432409,-300.0,0.00016785,2]
[400473476,1767623432419,-913.0,0.00016785,2]
[400473477,1767623432429,-300.0,0.00016785,2]
[400473478,1767623432439,-5921.11739638,0.00016786,2]
[400473485,1767623438406,-2480.57290362,0.00016786,2]
[400473486,1767623438416,-808.59782592,0.00016797,2]
[400473487,1767623438426,-808.59782588,0.0001692,2]
[400473488,1767623438437,-638.91,0.00016954,2]
[400473489,1767623438447,-166.66,0.00016964,2]
[400473490,1767623438457,-200.0,0.00016975,2]
[400473491,1767623438467,-169.0,0.00017,2]
[400473492,1767623438477,-250.0,0.00017,2]
[400473493,1767623438487,-808.59782588,0.00017042,2]
[400473494,1767623438497,-217.58,0.00017046,2]
[400473495,1767623438510,-267.74,0.000171,2]
[400473496,1767623438521,-808.59782588,0.00017165,2]
[400473497,1767623438531,-151.0,0.00017197,2]
[400473498,1767623438541,-151.0,0.00017197,2]
[400473499,1767623438551,-151.0,0.00017197,2]
[400473500,1767623438562,-151.0,0.00017201,2]
[400473501,1767623438571,-151.0,0.00017212,2]
[400473502,1767623438581,-151.0,0.00017212,2]
[400473503,1767623438591,-151.0,0.00017219,2]
[400473504,1767623438602,-151.0,0.00017221,2]
[400473505,1767623438612,-451.0,0.00017287,2]
[400473506,1767623438622,-808.59782588,0.00017287,2]
[400473507,1767623438632,-166.66,0.00017293,2]
[400473509,1767623438642,-59795.6960202,0.00017385,2]
[400473510,1767623438651,-808.59782588,0.0001741,2]
[400473512,1767623438661,-1751.9661781,0.00017477,2]
[400473514,1767623438671,-838.9735435,0.00017494,2]
[400473516,1767623438680,-26415.65567753,0.00017494,2]
[400473635,1767623445361,-7099.1185792,0.00017494,2]
[400473636,1767623445372,-45307.70646917,0.00017494,2]
[400473637,1767623445385,-808.59782588,0.00017532,2]
[400473638,1767623445394,-613.0,0.00017621,2]
[400473639,1767623445403,-340.65726481,0.0001764,2]
[400473640,1767623445412,-808.59782588,0.00017655,2]
[400473641,1767623445422,-808.59782588,0.00017777,2]
[400473642,1767623445431,-1336.33805,0.0001782,2]
[400473643,1767623445440,-1336.33806,0.0001782,2]
[400473644,1767623445450,-1336.33806,0.0001782,2]
[400473645,1767623445459,-1336.33805,0.0001782,2]
[400473646,1767623445469,-1336.33806,0.0001782,2]
[400473647,1767623445478,-1336.33806,0.0001782,2]
[400473648,1767623445488,-295.35,0.00017875,2]
[400473649,1767623445498,-433.0,0.00017898,2]
[400473650,1767623445507,-1266.0,0.00017898,2]
[400473651,1767623445517,-913.0,0.00017898,2]
[400473652,1767623445526,-1200.0,0.00017898,2]
[400473653,1767623445536,-3460.0,0.00017898,2]
[400473654,1767623445546,-4816.0,0.00017898,2]
[400473655,1767623445557,-614.0,0.00017898,2]
[400473656,1767623445568,-1329.0,0.00017898,2]
[400473657,1767623445578,-376.73482554,0.000179,3]
[400473658,1767623445588,-299.60215596,0.000179,2]
[400473659,1767623445597,-808.59782588,0.000179,2]
[400473660,1767623445607,-1445.62878644,0.000179,2]
[400473661,1767623445616,-14074.54684505,0.00017965,2]
[400473662,1767623445626,-3465.8965591,0.00017999,2]
[400473663,1767623445635,-300.0,0.00017999,2]
[400473664,1767623445645,-300.0,0.00017999,2]
[400473665,1767623445654,-970.24,0.00017999,2]
[400473666,1767623445664,-1459.0,0.00018,2]
[400473667,1767623445674,-727584.81602254,0.00018,2]
[400473668,1767623445686,-16037.3088423,0.00018,2]
[400473669,1767623445699,-1373.61932677,0.00018,2]
[400473670,1767623445710,-1068.475,0.00018,2]
[400473671,1767623445721,-841.78985,0.00018,2]
[400473672,1767623445733,-2099.213705,0.00018,2]
[400473680,1767623446341,-8999.99946582,0.00018,2]
[400473681,1767623446403,-6756.48853091,0.00018,2]
[400473682,1767623446467,-1207.60816525,0.00018,2]
[400473683,1767623446480,-14543.64789372,0.00018,2]
[400473684,1767623446641,-916.01129986,0.00018,2]
[400473685,1767623446747,-738.95574645,0.00018,2]
[400473688,1767623468992,500.6,0.000202,30]
[400473690,1767623499090,157.54,8.59e-05,2]
[400473691,1767623540718,500.0,0.000202,30]
[400473696,1767623710946,245.0,0.00029638,120]
[400473699,1767623712251,245.0,0.0003112,120]
[400473701,1767623713498,245.0,0.00032676,120]
[400473721,1767624008106,163.0,0.00029624,120]
[400473722,1767624009455,163.0,0.00031105,120]
[400473723,1767624010798,163.0,0.00032661,120]
[400473757,1767624307459,163.0,0.00029684,120]
[400473758,1767624308794,163.0,0.00031168,120]
[400473759,1767624310418,163.0,0.00032726,120]
[400473770,1767624347369,-180.412,0.00016353,2]
[400473771,1767624347391,-150.72250716,0.00016664,2]
[400473772,1767624428088,-431.18,0.0001665,2]
[400473773,1767624428111,-596.00333854,0.00016664,2]
[400473774,1767624432089,-253.2741543,0.00016664,2]
[400473775,1767624432109,-943.55,0.00016674,2]
[400473776,1767624432131,-300.0,0.00016684,2]
[400473777,1767624432152,-300.0,0.00016685,2]
[400473778,1767624432174,-500.0,0.00016685,2]
[400473779,1767624432196,-597.23624248,0.00016685,2]
[400473780,1767624432219,-500.0,0.00016685,2]
[400473781,1767624432241,-77.50868335,0.00016685,2]
[400473785,1767624615760,256.0,0.00027657,120]
[400473786,1767624617319,256.0,0.0002904,120]
[400473787,1767624618674,256.0,0.00030492,120]
[400473788,1767624620317,256.0,0.00032017,120]
[400473807,1767624631551,-1000.0,0.00016438,2]
[400473810,1767624631803,-3505.59,0.00016438,2]
[400473812,1767624631813,-465.00642657,0.00016585,2]
[400473815,1767624631823,-300.0,0.00016585,2]
[400473817,1767624631833,-500.0,0.00016585,2]
[400473819,1767624631844,-273.09763711,0.00016585,2]
[400473821,1767624631854,-181.66986251,0.00016586,2]
[400473823,1767624631863,-176.98289035,0.00016586,2]
[400473826,1767624631886,-255.00000005,0.00016586,2]
[400473828,1767624631897,-698.53479334,0.00016586,2]
[400473830,1767624631908,-815.30584082,0.00016586,2]
[400473910,1767624637549,-62681.8279057,0.00016586,2]
[400473911,1767624637610,-92644.8113134,0.00016586,2]
[400473912,1767624637621,-1651.53998877,0.00016586,2]
[400473913,1767624637632,-9502.49939994,0.00016586,2]
[400473914,1767624637671,-3030.0963896,0.00016586,2]
[400473915,1767624637683,-1050.35983392,0.00016586,2]
[400473937,1767624639804,-46624.01291828,0.00016586,2]
[400473938,1767624639865,-356.63560046,0.00016586,2]
[400473939,1767624639876,-445.55455244,0.00016586,2]
[400473940,1767624639887,-297.1876976,0.00016586,2]
[400473941,1767624639898,-2672.399802,0.00016586,2]
[400473966,1767624645664,-1104.89183922,0.00016586,2]
[400473968,1767624645675,-412.02773864,0.00016586,2]
[400473971,1767624645686,-325.0,0.00016586,2]
[400473975,1767624645724,-45296.27969547,0.00016586,2]
[400473977,1767624645735,-390.16204195,0.00016685,2]
[400473979,1767624645744,-6417.0315,0.00016686,2]
[400473981,1767624645753,-465.00642653,0.00016731,2]
[400473983,1767624645762,-500.0,0.00016786,2]
[400473985,1767624645771,-500.0,0.00016786,2]
[400473988,1767624645789,-500.0,0.00016786,2]
[400473990,1767624645800,-500.0,0.00016786,2]
[400473992,1767624645809,-500.0,0.00016786,2]
[400473993,1767624645818,-500.0,0.00016786,2]
[400473995,1767624645827,-465.00642653,0.00016877,2]
[400473996,1767624645837,-1576.09031422,0.00016955,2]
[400473998,1767624645846,-172.4,0.00016986,2]
[400473999,1767624645855,-465.00642653,0.00017023,2]
[400474001,1767624645865,-465.00642653,0.00017169,2]
[400474003,1767624645874,-157.54,0.00017181,2]
[400474004,1767624645883,-151.0,0.00017207,2]
[400474006,1767624645894,-151.0,0.00017262,2]
[400474007,1767624645903,-151.0,0.00017262,2]
[400474009,1767624645912,-465.00642653,0.00017316,2]
[400474010,1767624645922,-298.0,0.0001733,2]
[400474011,1767624645931,-298.0,0.00017373,2]
[400474012,1767624645941,-298.0,0.00017387,2]
[400474013,1767624645951,-465.00642653,0.00017462,2]
[400474014,1767624645960,-500.0,0.00017493,2]
[400474015,1767624645969,-259.94132505,0.00017493,2]
[400474016,1767624645979,-508.25738517,0.00017493,2]
[400474017,1767624645989,-153.55,0.00017519,2]
[400474018,1767624645998,-332.15,0.00017534,2]
[400474019,1767624646008,-298.0,0.00017552,2]
[400474020,1767624646018,-465.00642653,0.00017608,2]
[400474021,1767624646027,-288.0,0.00017625,2]
[400474022,1767624646036,-170.3286324,0.0001764,2]
[400474023,1767624646046,-288.0,0.00017662,2]
[400474024,1767624646056,-288.0,0.0001768,2]
[400474025,1767624646065,-288.0,0.000177,2]
[400474026,1767624646074,-288.0,0.00017708,2]
[400474027,1767624646083,-465.00642653,0.00017754,2]
[400474028,1767624646093,-288.0,0.00017774,2]
[400474029,1767624646104,-288.0,0.00017781,2]
[400474030,1767624646113,-288.0,0.00017807,2]
[400474031,1767624646122,-534.53522,0.0001782,2]
[400474032,1767624646131,-534.53522,0.0001782,2]
[400474033,1767624646141,-534.53523,0.0001783,2]
[400474034,1767624646154,-288.0,0.00017849,2]
[400474035,1767624646164,-534.53522,0.0001786,2]
[400474036,1767624646173,-534.53522,0.0001788,2]
[400474037,1767624646183,-614.0,0.00017898,2]
[400474038,1767624646192,-1329.0,0.00017898,2]
[400474039,1767624646201,-985.212,0.00017898,2]
[400474040,1767624646211,-449.092,0.00017898,2]
[400474041,1767624646222,-1012.90350571,0.00017898,2]
[400474042,1767624646247,-1422.09649429,0.00017898,2]
[400474043,1767624646262,-22.51786967,0.00017898,2]
[400474044,1767624646276,-4793.48213033,0.00017898,2]
[400474045,1767624646286,-1797.61293576,0.000179,2]
[400474046,1767624646297,-881.74950095,0.000179,2]
[400474047,1767624646307,-465.00642653,0.000179,2]
[400474048,1767624646316,-119.28491157,0.0001791,2]
[400474049,1767624646333,-415.25030843,0.0001791,2]
[400474050,1767624646342,-96.21830267,0.00017914,2]
[400474051,1767624646355,-849.79685923,0.00017914,2]
[400474052,1767624646368,-288.0,0.00017966,2]
[400474053,1767624646380,-288.0,0.00017985,2]
[400474054,1767624646391,-288.0,0.00017987,2]
[400474055,1767624646401,-288.0,0.00017994,2]
[400474056,1767624646411,-500.0,0.00017999,2]
[400474057,1767624646421,-500.0,0.00017999,2]
[400474058,1767624646431,-500.0,0.00017999,2]
[400474059,1767624646441,-191.64757224,0.00017999,2]
[400474060,1767624646451,-300.0,0.00017999,2]
[400474061,1767624646460,-783.0,0.00018,2]
[400474062,1767624646470,-19223.55554865,0.00018,2]
[400474063,1767624646483,-11999.07050161,0.00018,2]
[400474066,1767624646980,-961763.44276979,0.00018,2]
[400474067,1767624646991,-523885.99324347,0.00018,2]
[400474068,1767624647006,-1283214.64459967,0.00018,2]
[400474069,1767624647017,-46057.52479616,0.00018,2]
[400474070,1767624647050,-5.28468108,0.00018,2]
[400474071,1767624647062,-5941.72692483,0.00018,2]
[400474088,1767625079683,269.240744,0.0003,120]
[400474090,1767625210099,172.0,0.000306,120]
[400474091,1767625211811,172.0,0.0003213,120]
[400474096,1767625505052,172.0,0.00031381,120]
[400474097,1767625558110,-180.412,0.00016255,2]
[400474098,1767625558137,-150.35930167,0.00016462,5]
[400474099,1767625558165,-177.37,0.00016462,2]
[400474100,1767625558576,-275.90724588,0.00016478,2]
[400474102,1767625633134,-602.15275412,0.00016478,2]
[400474103,1767625633159,-184.67328404,0.00016486,2]
[400474104,1767625633183,-477.39965768,0.00016486,2]
[400474105,1767625633203,-212.50284174,0.00016486,2]
[400474106,1767625633223,-227.20239547,0.000165,2]
[400474107,1767625633244,-300.0,0.00016585,2]
[400474108,1767625633266,-1200.0,0.00016585,2]
[400474109,1767625633287,-188.03275869,0.00016585,2]
[400474110,1767625633319,-5290.42554328,0.00016586,2]
[400474111,1767625732251,150.0,0.00015,2]
[400474112,1767625797331,150.0,0.00016,2]
[400474122,1767625831673,-285.0,0.00016155,2]
[400474123,1767625831683,-500.0,0.00016155,2]
[400474124,1767625831694,-427.0,0.00016485,2]
[400474125,1767625831703,-150.6379974,0.00016485,5]
[400474126,1767625831713,-185.93998647,0.00016486,2]
[400474127,1767625831723,-17100.42201614,0.00016486,2]
[400474128,1767625831892,-2337.30924,0.00016486,2]
[400474129,1767625831904,-6244.97485754,0.00016486,2]
[400474140,1767625837798,-4486.39381391,0.00016486,2]
[400474141,1767625837811,-273.40281656,0.00016486,2]
[400474142,1767625837823,-3284.12977553,0.00016486,2]
[400474143,1767625837835,-3963.06644554,0.00016486,2]
[400474144,1767625837875,-372.0,0.00016486,2]
[400474151,1767625839953,-21568.73268217,0.00016486,2]
[400474152,1767625839964,-987.20688279,0.00016486,2]
[400474153,1767625839975,-453.16650001,0.00016486,2]
[400474245,1767625844595,-1417.67063,0.00016486,2]
[400474246,1767625844607,-1573.28442931,0.00016486,2]
[400474247,1767625844623,-23357.69726578,0.00016486,2]
[400474248,1767625844667,-381.90672723,0.00016486,2]
[400474249,1767625844679,-231193.82911749,0.00016486,2]
[400474250,1767625844691,-150.0,0.000165,2]
[400474251,1767625844701,-6674.7957,0.00016586,2]
[400474252,1767625844711,-477.39965768,0.00016643,2]
[400474253,1767625844721,-185.93998646,0.00016688,2]
[400474254,1767625844731,-200.0,0.00016713,2]
[400474255,1767625844741,-999.0,0.00016741,3]
[400474256,1767625844751,-477.39965768,0.000168,2]
[400474257,1767625844761,-185.93998646,0.0001689,2]
[400474258,1767625844771,-150.03,0.00016916,2]
[400474259,1767625844780,-477.39965768,0.00016957,2]
[400474260,1767625844790,-250.0,0.00017,2]
[400474262,1767625844799,-185.93998646,0.00017092,2]
[400474264,1767625844808,-200.0,0.00017099,2]
[400474265,1767625844818,-178.79859769,0.00017099,2]
[400474266,1767625844828,-477.39965768,0.00017114,2]
[400474267,1767625844837,-472.18937407,0.00017173,2]
[400474268,1767625844846,-477.39965768,0.00017272,2]
[400474269,1767625844856,-185.93998646,0.00017294,2]
[400474270,1767625844869,-166.66,0.0001739,2]
[400474271,1767625844879,-477.39965768,0.00017429,2]
[400474272,1767625844888,-185.93998646,0.00017496,2]
[400474273,1767625844897,-477.39965768,0.00017586,2]
[400474274,1767625844907,-1295.94983988,0.0001764,2]
[400474275,1767625844916,-185.93998646,0.00017698,2]
[400474276,1767625844926,-250.0,0.0001774,2]
[400474277,1767625844935,-477.39965768,0.00017743,2]
[400474278,1767625844944,-2435.0,0.00017794,2]
[400474279,1767625844955,-475.597,0.00017794,2]
[400474280,1767625844964,-565.0,0.00017794,2]
[400474281,1767625844974,-4816.0,0.00017794,2]
[400474282,1767625844983,-166.2059556,0.000178,2]
[400474283,1767625844993,-166.20595555,0.00017811,2]
[400474284,1767625845002,-172.64994,0.0001782,2]
[400474285,1767625845012,-172.64994,0.0001782,2]
[400474286,1767625845021,-172.64994,0.0001783,2]
[400474287,1767625845031,-200.0,0.00017856,2]
[400474288,1767625845041,-172.64995,0.0001786,2]
[400474289,1767625845050,-172.64994,0.0001788,2]
[400474290,1767625845060,-1329.0,0.00017898,2]
[400474291,1767625845069,-435.663,0.00017898,2]
[400474292,1767625845079,-157.28188232,0.000179,2]
[400474293,1767625845088,-477.39965768,0.000179,2]
[400474294,1767625845097,-6190.01987986,0.000179,2]
[400474295,1767625845107,-185.93998646,0.000179,2]
[400474296,1767625845117,-172.64994,0.0001791,2]
[400474297,1767625845126,-408.78429881,0.00017973,2]
[400474298,1767625845135,-284.88508003,0.00017973,2]
[400474299,1767625845144,-500.0,0.00017973,2]
[400474300,1767625845154,-177.47568038,0.00017973,2]
[400474301,1767625845163,-500.0,0.00017973,2]
[400474302,1767625845173,-504.98345966,0.00017973,2]
[400474303,1767625845182,-502.24449142,0.00017973,2]
[400474304,1767625845191,-500.0,0.00017973,2]
[400474305,1767625845200,-615.33486766,0.00017973,2]
[400474306,1767625845210,-523.08013523,0.00017973,2]
[400474307,1767625845219,-502.14140617,0.00017973,2]
[400474308,1767625845228,-500.0,0.00017973,2]
[400474309,1767625845237,-500.0,0.00017973,2]
[400474310,1767625845247,-500.0,0.00017973,2]
[400474311,1767625845256,-566.06120404,0.00017973,2]
[400474312,1767625845266,-500.0,0.00017973,2]
[400474313,1767625845275,-639.71670893,0.00017973,2]
[400474314,1767625845284,-500.0,0.00017973,2]
[400474315,1767625845294,-500.0,0.00017973,2]
[400474316,1767625845303,-500.0,0.00017973,2]
[400474317,1767625845312,-500.0,0.00017973,2]
[400474318,1767625845322,-500.0,0.00017973,2]
[400474319,1767625845333,-500.0,0.00017973,2]
[400474320,1767625845342,-500.0,0.00017973,2]
[400474321,1767625845351,-502.08064812,0.00017973,2]
[400474322,1767625845361,-508.05780971,0.00017973,2]
[400474323,1767625845372,-196.95064671,0.00017973,2]
[400474324,1767625845382,-872.26,0.00017973,2]
[400474325,1767625845391,-1882.8591741,0.00017999,2]
[400474326,1767625845401,-34834.9789508,0.00017999,2]
[400474327,1767625845410,-16899.7736087,0.00017999,2]
[400474328,1767625845419,-12820.3745455,0.00017999,2]
[400474329,1767625845429,-300.0,0.00017999,2]
[400474330,1767625845438,-666.0,0.00017999,2]
[400474331,1767625845448,-1807.0,0.00018,2]
[400474332,1767625845457,-112023.32268812,0.00018,2]
[400474333,1767625845467,-1187.72537298,0.00018,2]
[400474335,1767625845476,-75670.93377921,0.00018,2]
[400474337,1767625845489,-9369.0654831,0.00018,2]
[400474343,1767625845662,-151.0,0.00017239,2]
[400474344,1767625845672,-249.0,0.00018,2]
[400474345,1767625845684,-935.57953024,0.00018,2]
[400474346,1767625845786,-87.11650528,0.00017239,2]
[400474347,1767625845840,-63.88349472,0.00017239,2]
[400474348,1767625845851,-17395.96806049,0.00018,2]
[400474415,1767625990095,613.51,0.00013699,2]
[400474435,1767626068080,165.35,8.428e-05,2]
[400474440,1767626091923,150.0,0.00016,2]
[400474445,1767626173975,-150.0,0.0001625,2]
[400474446,1767626174002,-300.0,0.00016485,2]
[400474447,1767626174031,-1200.0,0.00016485,2]
[400474448,1767626174058,-300.0,0.00016485,2]
[400474449,1767626174085,-150.57410956,0.00016485,5]
[400474450,1767626174110,-6701.7506,0.00016486,2]
[400474451,1767626174135,-236.4176,0.00016486,2]
[400474452,1767626174161,-150.0,0.000165,2]
[400474453,1767626201255,150.0,0.000165,2]
[400474454,1767626240870,150.0,0.000165,2]
[400474455,1767626269817,154.93,0.00032877,120]
[400474456,1767626291115,193.0,0.00032877,120]
[400474461,1767626463373,166.66,0.00015909,2]
[400474462,1767626463589,166.66,0.00016244,2]
[400474465,1767626622332,150.0,0.000165,2]
[400474466,1767626673653,150.0,0.000165,2]
[400474467,1767626711262,150.0,0.000165,2]
[400474469,1767626727412,150.0,0.000165,2]
[400474474,1767626754896,150.0,0.000165,2]
[400474475,1767626766243,5273.47177781,0.0003,120]
[400474482,1767626813352,14184.21697401,0.000162,5]
[400474483,1767626848215,-166.66,0.00016579,2]
[400474484,1767626848236,-250.0,0.00016612,2]
[400474485,1767626848257,-1000.0,0.00016618,2]
[400474486,1767626848277,-500.0,0.00016646,2]
[400474487,1767626848297,-553.37,0.00016682,2]
[400474488,1767626848318,-291.0,0.000167,2]
[400474489,1767626848339,-160.0,0.0001672,2]
[400474490,1767626848360,-150.60050544,0.00016737,5]
[400474491,1767626848380,-1948.13,0.00016793,2]
[400474492,1767626848401,-159.41,0.00016797,2]
[400474493,1767626848423,-210.09,0.00016809,3]
[400474494,1767626848448,-165.35,0.00016857,2]
[400474495,1767626848471,-166.66,0.00016914,2]
[400474496,1767626848494,-110.67891681,0.00016922,2]
[400474504,1767627005274,172.0,0.00030782,120]
[400474512,1767627031766,-434.53,0.00016752,2]
[400474514,1767627031776,-151.25869019,0.00016922,6]
[400474515,1767627031785,-3352.02,0.00016923,2]
[400474516,1767627031794,-476.70289378,0.00016943,2]
[400474517,1767627031803,-150.0,0.00017025,2]
[400474518,1767627031812,-300.0,0.00017098,2]
[400474519,1767627031822,-1200.0,0.00017098,2]
[400474520,1767627031831,-300.0,0.00017098,2]
[400474521,1767627031840,-200.0,0.00017099,2]
[400474522,1767627031850,-207.4,0.00017099,2]
[400474523,1767627031859,-215.0738,0.00017099,2]
[400474524,1767627031868,-192.34920737,0.00017099,2]
[400474525,1767627031878,-448.72451731,0.00017099,2]
[400474526,1767627031887,-233.0,0.00017161,2]
[400474527,1767627031897,-500.0,0.00017162,2]
[400474528,1767627031907,-151.0,0.00017162,2]
[400474529,1767627031916,-151.0,0.00017162,2]
[400474530,1767627031925,-151.0,0.00017162,2]
[400474531,1767627031935,-500.0,0.00017162,2]
[400474532,1767627031944,-151.0,0.00017162,2]
[400474533,1767627031953,-500.0,0.00017162,2]
[400474534,1767627031963,-151.0,0.00017162,2]
[400474535,1767627031974,-500.0,0.00017162,2]
[400474536,1767627031983,-500.0,0.00017162,2]
[400474537,1767627031992,-151.0,0.00017162,2]
[400474538,1767627032001,-500.0,0.00017162,2]
[400474539,1767627032010,-500.0,0.00017162,2]
[400474540,1767627032020,-151.0,0.00017162,2]
[400474541,1767627032029,-500.0,0.00017162,2]
[400474542,1767627032040,-500.0,0.00017162,2]
[400474543,1767627032049,-151.0,0.00017162,2]
[400474544,1767627032060,-500.0,0.00017162,2]
[400474545,1767627032069,-500.0,0.00017162,2]
[400474546,1767627032079,-151.0,0.00017162,2]
[400474547,1767627032088,-500.0,0.00017162,2]
[400474548,1767627032097,-500.0,0.00017162,2]
[400474549,1767627032106,-151.0,0.00017162,2]
[400474550,1767627032116,-500.0,0.00017162,2]
[400474551,1767627032126,-500.0,0.00017162,2]
[400474553,1767627032141,-500.0,0.00017162,2]
[400474554,1767627032154,-151.0,0.00017162,2]
[400474556,1767627032164,-500.0,0.00017162,2]
[400474558,1767627032174,-500.0,0.00017162,2]
[400474560,1767627032184,-151.0,0.00017162,2]
[400474563,1767627032193,-500.0,0.00017162,2]
[400474564,1767627032204,-500.0,0.00017162,2]
[400474565,1767627032214,-151.0,0.00017162,2]
[400474566,1767627032224,-500.0,0.00017162,2]
[400474567,1767627032233,-151.0,0.00017162,2]
[400474568,1767627032243,-500.0,0.00017162,2]
[400474569,1767627032253,-151.0,0.00017162,2]
[400474570,1767627032262,-500.0,0.00017162,2]
[400474571,1767627032271,-151.0,0.00017162,2]
[400474572,1767627032280,-151.0,0.00017162,2]
[400474573,1767627032289,-151.0,0.00017162,2]
[400474574,1767627032299,-151.0,0.00017162,2]
[400474575,1767627032308,-151.0,0.00017162,2]
[400474576,1767627032318,-500.0,0.00017173,2]
[400474577,1767627032328,-500.0,0.00017173,2]
[400474578,1767627032337,-500.0,0.00017173,2]
[400474579,1767627032347,-517.02312556,0.00017173,2]
[400474580,1767627032357,-500.0,0.00017173,2]
[400474581,1767627032368,-500.0,0.00017173,2]
[400474582,1767627032378,-500.0,0.00017173,2]
[400474583,1767627032388,-500.0,0.00017173,2]
[400474584,1767627032397,-166.66,0.00017249,2]
[400474585,1767627032407,-168.0,0.00017285,2]
[400474586,1767627032417,-151.0,0.00017306,2]
[400474587,1767627032427,-151.0,0.00017306,2]
[400474588,1767627032436,-150.0,0.00017515,2]
[400474589,1767627032446,-150.0,0.00017515,2]
[400474590,1767627032455,-500.0,0.00017526,2]
[400474591,1767627032465,-3456.59134103,0.00017536,2]
[400474592,1767627032475,-1251.99396314,0.00017536,2]
[400474593,1767627032484,-369.4056711,0.00017536,2]
[400474594,1767627032493,-1664.33881213,0.00017576,2]
[400474595,1767627032524,-1792.25252881,0.00017576,2]
[400474596,1767627032533,-500.0,0.00017581,2]
[400474597,1767627032543,-166.66,0.00017584,2]
[400474598,1767627032553,-434.53,0.00017589,2]
[400474599,1767627032563,-3456.59134094,0.00017617,2]
[400474600,1767627032572,-9206.64720464,0.00017621,2]
[400474601,1767627032584,-424.03221248,0.00017621,2]
[400474602,1767627032595,-1903.7200289,0.00017621,2]
[400474603,1767627032612,-291.47,0.00017621,2]
[400474604,1767627032732,-3455.44836013,0.00017621,2]
[400474605,1767627032744,-1179.22413789,0.00017621,2]
[400474608,1767627037955,-369.40567105,0.00017576,2]
[400474609,1767627037969,-983.37485219,0.00017621,2]
[400474610,1767627038147,-75114.72071643,0.00017621,2]
[400474611,1767627038159,-302.39968259,0.00017621,2]
[400474612,1767627038183,-907138.96280475,0.00017621,2]
[400474613,1767627038192,-500.0,0.00017636,2]
[400474614,1767627038202,-647.97491994,0.0001764,2]
[400474615,1767627038212,-3456.59134094,0.00017657,2]
[400474616,1767627038222,-165.03217023,0.00017686,2]
[400474617,1767627038231,-500.0,0.0001769,2]
[400474618,1767627038241,-3456.59134094,0.00017698,2]
[400474619,1767627038250,-1251.99396314,0.00017718,2]
[400474620,1767627038259,-1000.0,0.00017721,2]